[Event "Late-Titled-Tuesday-Blitz-November-28-2023"]
[Site "Chess.com"]
[Date "2023.11.28"]
[Round "1"]
[White "tolimachess"]
[Black "Mikasinski"]
[Result "0-1"]
[WhiteElo "2376"]
[BlackElo "2703"]
[TimeControl "180+1"]
[EndTime "14:02:10 PST"]
[Termination "Mikasinski won by checkmate"]

1. e4 {[%clk 0:03:00.4]} 1... c5 {[%clk 0:02:59.7]} 2. Nc3 {[%clk 0:03:00.1]}
2... Nc6 {[%clk 0:02:59.7]} 3. g3 {[%clk 0:02:57.2]} 3... g6 {[%clk 0:02:59.8]}
4. Bg2 {[%clk 0:02:58.1]} 4... Bg7 {[%clk 0:02:59.9]} 5. d3 {[%clk 0:02:57.1]}
5... d6 {[%clk 0:03:00.5]} 6. Be3 {[%clk 0:02:56.9]} 6... e6 {[%clk 0:03:00.1]}
7. Qd2 {[%clk 0:02:56.1]} 7... Rb8 {[%clk 0:02:59.8]} 8. a4 {[%clk 0:02:55.6]}
8... a6 {[%clk 0:02:58.7]} 9. f4 {[%clk 0:02:53.7]} 9... Nge7 {[%clk 0:02:57.2]}
10. Nf3 {[%clk 0:02:49.6]} 10... Nd4 {[%clk 0:02:57.2]} 11. O-O {[%clk
0:02:48.9]} 11... b5 {[%clk 0:02:55.8]} 12. axb5 {[%clk 0:02:49.8]} 12... axb5
{[%clk 0:02:55.7]} 13. Rab1 {[%clk 0:02:49.8]} 13... Qa5 {[%clk 0:02:54.1]} 14.
Ne2 {[%clk 0:02:46.8]} 14... Qxd2 {[%clk 0:02:48.9]} 15. Nxd2 {[%clk 0:02:45.1]}
15... Nxe2+ {[%clk 0:02:49.1]} 16. Kf2 {[%clk 0:02:45.4]} 16... Nd4 {[%clk
0:02:49.2]} 17. c3 {[%clk 0:02:45.3]} 17... Nc2 {[%clk 0:02:47.4]} 18. Ke2
{[%clk 0:02:41.3]} 18... Nxe3 {[%clk 0:02:47.3]} 19. Kxe3 {[%clk 0:02:42.2]}
19... O-O {[%clk 0:02:46.1]} 20. d4 {[%clk 0:02:38.5]} 20... b4 {[%clk
0:02:45.1]} 21. Nc4 {[%clk 0:02:35]} 21... Ba6 {[%clk 0:02:37.3]} 22. Nxd6
{[%clk 0:02:34.7]} 22... Bxf1 {[%clk 0:02:34.3]} 23. Rxf1 {[%clk 0:02:35.6]}
23... bxc3 {[%clk 0:02:34.1]} 24. bxc3 {[%clk 0:02:36.5]} 24... cxd4+ {[%clk
0:02:34.6]} 25. cxd4 {[%clk 0:02:37.4]} 25... Rb3+ {[%clk 0:02:35]} 26. Kd2
{[%clk 0:02:37.5]} 26... Rb2+ {[%clk 0:02:35.5]} 27. Kc3 {[%clk 0:02:36.3]}
27... Rxg2 {[%clk 0:02:36.4]} 28. e5 {[%clk 0:02:36.5]} 28... Nd5+ {[%clk
0:02:36]} 29. Kc4 {[%clk 0:02:36.6]} 29... Rxh2 {[%clk 0:02:35.6]} 30. Kc5
{[%clk 0:02:37.5]} 30... Rc2+ {[%clk 0:02:35.5]} 31. Kb5 {[%clk 0:02:37.8]}
31... Rb8+ {[%clk 0:02:35.5]} 32. Nb7 {[%clk 0:02:37.2]} 32... Rxb7+ {[%clk
0:02:35.9]} 33. Ka6 {[%clk 0:02:38.1]} 33... Rb6+ {[%clk 0:02:36.4]} 34. Ka5
{[%clk 0:02:38.8]} 34... Ra2# {[%clk 0:02:37.2]} 0-1

[Event "Late-Titled-Tuesday-Blitz-November-28-2023"]
[Site "Chess.com"]
[Date "2023.11.28"]
[Round "1"]
[White "GlavkonVVS"]
[Black "JaackCamel"]
[Result "1-0"]
[WhiteElo "2519"]
[BlackElo "2000"]
[TimeControl "180+1"]
[EndTime "14:02:42 PST"]
[Termination "GlavkonVVS won by resignation"]

1. Nf3 {[%clk 0:03:00.9]} 1... d5 {[%clk 0:02:54.2]} 2. c4 {[%clk 0:03:00.7]}
2... e6 {[%clk 0:02:53.8]} 3. d4 {[%clk 0:03:00.2]} 3... c6 {[%clk 0:02:53.3]}
4. Nc3 {[%clk 0:03:00.5]} 4... dxc4 {[%clk 0:02:52.7]} 5. a4 {[%clk 0:02:59.9]}
5... Bb4 {[%clk 0:02:51.8]} 6. e3 {[%clk 0:02:59.8]} 6... b5 {[%clk 0:02:51.4]}
7. Nd2 {[%clk 0:02:56.7]} 7... a6 {[%clk 0:02:31.6]} 8. axb5 {[%clk 0:02:46.7]}
8... Bxc3 {[%clk 0:02:31.3]} 9. bxc3 {[%clk 0:02:46.9]} 9... cxb5 {[%clk
0:02:30.9]} 10. Qf3 {[%clk 0:02:46.6]} 10... Ra7 {[%clk 0:02:21.9]} 11. Qg3
{[%clk 0:02:46]} 11... Nd7 {[%clk 0:02:12.3]} 12. Qxg7 {[%clk 0:02:45.4]} 12...
Qf6 {[%clk 0:02:12.1]} 13. Qg3 {[%clk 0:02:44.8]} 13... Ne7 {[%clk 0:02:06.8]}
14. Ba3 {[%clk 0:02:35.8]} 14... Rg8 {[%clk 0:02:00.1]} 15. Bxe7 {[%clk
0:02:32.8]} 15... Rxg3 {[%clk 0:01:44.3]} 16. Bxf6 {[%clk 0:02:32.5]} 16... Rg4
{[%clk 0:01:36.3]} 17. h3 {[%clk 0:02:24.5]} 1-0

[Event "Late-Titled-Tuesday-Blitz-November-28-2023"]
[Site "Chess.com"]
[Date "2023.11.28"]
[Round "1"]
[White "djano"]
[Black "Charodej1"]
[Result "1-0"]
[WhiteElo "2557"]
[BlackElo "2208"]
[TimeControl "180+1"]
[EndTime "14:03:17 PST"]
[Termination "djano won by resignation"]

1. e4 {[%clk 0:03:00.9]} 1... c6 {[%clk 0:02:59.2]} 2. d4 {[%clk 0:02:59.6]}
2... d5 {[%clk 0:02:59]} 3. exd5 {[%clk 0:03:00.5]} 3... cxd5 {[%clk 0:02:59.1]}
4. Bd3 {[%clk 0:03:01]} 4... Nc6 {[%clk 0:02:59.1]} 5. c3 {[%clk 0:03:01.3]}
5... Nf6 {[%clk 0:02:59.2]} 6. Bf4 {[%clk 0:03:01.5]} 6... Bg4 {[%clk
0:02:59.1]} 7. Qb3 {[%clk 0:03:01.7]} 7... Qd7 {[%clk 0:02:59.5]} 8. Nd2 {[%clk
0:03:02]} 8... e6 {[%clk 0:02:59.9]} 9. Ngf3 {[%clk 0:03:02.4]} 9... Bxf3 {[%clk
0:03:00.3]} 10. Nxf3 {[%clk 0:03:02.6]} 10... Bd6 {[%clk 0:03:01]} 11. Bxd6
{[%clk 0:03:02.7]} 11... Qxd6 {[%clk 0:03:01.7]} 12. O-O {[%clk 0:03:03.4]}
12... O-O {[%clk 0:03:02]} 13. Rae1 {[%clk 0:03:04.1]} 13... Rab8 {[%clk
0:03:02.2]} 14. Ne5 {[%clk 0:03:00.5]} 14... Rfc8 {[%clk 0:03:02.1]} 15. f4
{[%clk 0:02:53.9]} 15... b5 {[%clk 0:02:22.4]} 16. a3 {[%clk 0:02:53]} 16... Na5
{[%clk 0:02:00]} 17. Qd1 {[%clk 0:02:51.4]} 17... Nc4 {[%clk 0:01:56.9]} 18. Qe2
{[%clk 0:02:49.7]} 18... a5 {[%clk 0:01:52.6]} 19. g4 {[%clk 0:02:49.1]} 19...
b4 {[%clk 0:01:43]} 20. g5 {[%clk 0:02:38.5]} 20... Nd7 {[%clk 0:01:26.7]} 21.
Bxh7+ {[%clk 0:02:38.6]} 21... Kxh7 {[%clk 0:01:25]} 22. Qh5+ {[%clk 0:02:38.2]}
22... Kg8 {[%clk 0:01:25.1]} 23. Qxf7+ {[%clk 0:02:38.9]} 23... Kh8 {[%clk
0:01:25.1]} 24. Rf3 {[%clk 0:02:34]} 1-0

[Event "Late-Titled-Tuesday-Blitz-November-28-2023"]
[Site "Chess.com"]
[Date "2023.11.28"]
[Round "1"]
[White "NigelDwarf"]
[Black "Yushko_Olga"]
[Result "1-0"]
[WhiteElo "2533"]
[BlackElo "2139"]
[TimeControl "180+1"]
[EndTime "14:04:01 PST"]
[Termination "NigelDwarf won by resignation"]

1. b3 {[%clk 0:03:00.2]} 1... e6 {[%clk 0:02:59.1]} 2. Bb2 {[%clk 0:03:00.9]}
2... f5 {[%clk 0:02:59.5]} 3. e3 {[%clk 0:02:59.7]} 3... Nf6 {[%clk 0:02:59.9]}
4. f4 {[%clk 0:02:59.3]} 4... Be7 {[%clk 0:02:59.8]} 5. Nf3 {[%clk 0:02:59.1]}
5... O-O {[%clk 0:03:00.2]} 6. Be2 {[%clk 0:02:59.3]} 6... d6 {[%clk 0:03:00.7]}
7. O-O {[%clk 0:02:59.5]} 7... Qe8 {[%clk 0:03:01.1]} 8. d3 {[%clk 0:02:49.6]}
8... Nc6 {[%clk 0:03:00.4]} 9. Qe1 {[%clk 0:02:41]} 9... Qg6 {[%clk 0:02:50.1]}
10. Nbd2 {[%clk 0:02:29.9]} 10... Bd7 {[%clk 0:02:37.5]} 11. Kh1 {[%clk
0:02:07.7]} 11... Rae8 {[%clk 0:02:35.9]} 12. a3 {[%clk 0:02:02]} 12... Qh6
{[%clk 0:02:31.4]} 13. b4 {[%clk 0:01:58]} 13... Ng4 {[%clk 0:02:31.2]} 14. Bd1
{[%clk 0:01:56.5]} 14... e5 {[%clk 0:02:29.7]} 15. fxe5 {[%clk 0:01:45.8]} 15...
dxe5 {[%clk 0:02:26.6]} 16. e4 {[%clk 0:01:33.5]} 16... f4 {[%clk 0:02:26.2]}
17. Nc4 {[%clk 0:01:26.4]} 17... Bh4 {[%clk 0:02:18.1]} 18. Qxh4 {[%clk
0:01:23.7]} 18... Qg6 {[%clk 0:02:07.7]} 19. b5 {[%clk 0:01:19.4]} 19... Nd8
{[%clk 0:01:59.3]} 20. Ncxe5 {[%clk 0:01:15.3]} 1-0

[Event "Late-Titled-Tuesday-Blitz-November-28-2023"]
[Site "Chess.com"]
[Date "2023.11.28"]
[Round "1"]
[White "krzyzan94"]
[Black "PapaieDudu"]
[Result "1-0"]
[WhiteElo "2751"]
[BlackElo "2410"]
[TimeControl "180+1"]
[EndTime "14:04:22 PST"]
[Termination "krzyzan94 won by checkmate"]

1. e4 {[%clk 0:03:00.9]} 1... c5 {[%clk 0:02:59.3]} 2. Nf3 {[%clk 0:03:00.9]}
2... d6 {[%clk 0:02:59.4]} 3. d4 {[%clk 0:03:01.2]} 3... cxd4 {[%clk 0:03:00.3]}
4. Nxd4 {[%clk 0:03:01.2]} 4... Nf6 {[%clk 0:03:00.9]} 5. Nc3 {[%clk 0:03:01.7]}
5... a6 {[%clk 0:03:01.3]} 6. Be2 {[%clk 0:03:01.7]} 6... e6 {[%clk 0:03:01.9]}
7. Be3 {[%clk 0:02:58.3]} 7... Be7 {[%clk 0:03:02.4]} 8. g4 {[%clk 0:02:58.3]}
8... b5 {[%clk 0:02:56.6]} 9. g5 {[%clk 0:02:57.9]} 9... Nfd7 {[%clk 0:02:56.5]}
10. a3 {[%clk 0:02:51]} 10... Bb7 {[%clk 0:02:55.4]} 11. Qd2 {[%clk 0:02:45]}
11... Nc6 {[%clk 0:02:51.7]} 12. h4 {[%clk 0:02:40.2]} 12... Nc5 {[%clk
0:02:49.5]} 13. f3 {[%clk 0:02:36.3]} 13... Rc8 {[%clk 0:02:47.8]} 14. h5 {[%clk
0:02:33.4]} 14... Qc7 {[%clk 0:02:46.1]} 15. Nxc6 {[%clk 0:02:20.7]} 15... Qxc6
{[%clk 0:02:45.7]} 16. O-O-O {[%clk 0:02:21.1]} 16... g6 {[%clk 0:02:41.5]} 17.
hxg6 {[%clk 0:02:19.6]} 17... fxg6 {[%clk 0:02:42.4]} 18. Bd4 {[%clk 0:02:14.5]}
18... e5 {[%clk 0:02:40.8]} 19. Be3 {[%clk 0:02:12.3]} 19... Kf8 {[%clk
0:02:37.4]} 20. Nd5 {[%clk 0:02:11.9]} 20... Nb3+ {[%clk 0:02:37]} 21. Kb1
{[%clk 0:02:12.3]} 21... Nxd2+ {[%clk 0:02:37.5]} 22. Rxd2 {[%clk 0:02:13.2]}
22... Bd8 {[%clk 0:02:36.9]} 23. f4 {[%clk 0:02:11]} 23... Kg7 {[%clk
0:02:37.1]} 24. f5 {[%clk 0:02:07.5]} 24... Rf8 {[%clk 0:02:33.9]} 25. f6+
{[%clk 0:02:05.3]} 25... Kg8 {[%clk 0:02:34.2]} 26. Bg4 {[%clk 0:02:05.4]} 26...
Rf7 {[%clk 0:02:30]} 27. Be6 {[%clk 0:02:04]} 27... Qe8 {[%clk 0:02:29.4]} 28.
Bg4 {[%clk 0:01:33.7]} 28... h5 {[%clk 0:02:23.4]} 29. gxh6 {[%clk 0:01:23.4]}
29... Bxf6 {[%clk 0:02:20.5]} 30. h7+ {[%clk 0:01:17.4]} 30... Kh8 {[%clk
0:02:20.9]} 31. Nxf6 {[%clk 0:01:15.4]} 31... Rxf6 {[%clk 0:02:21.1]} 32. Bg5
{[%clk 0:01:08.8]} 32... Re6 {[%clk 0:02:15.3]} 33. Rf2 {[%clk 0:01:04.3]} 33...
Bxe4 {[%clk 0:02:13.9]} 34. Bxe6 {[%clk 0:01:01.5]} 34... Bxh1 {[%clk
0:02:05.1]} 35. Bf6+ {[%clk 0:01:00.8]} 35... Kxh7 {[%clk 0:02:03.6]} 36. Rh2#
{[%clk 0:01:01.7]} 1-0

[Event "Late-Titled-Tuesday-Blitz-November-28-2023"]
[Site "Chess.com"]
[Date "2023.11.28"]
[Round "1"]
[White "Romadk"]
[Black "Arash_Tahbaz"]
[Result "0-1"]
[WhiteElo "2454"]
[BlackElo "2902"]
[TimeControl "180+1"]
[EndTime "14:04:30 PST"]
[Termination "Arash_Tahbaz won by resignation"]

1. d4 {[%clk 0:03:00.9]} 1... g6 {[%clk 0:03:00.2]} 2. e4 {[%clk 0:03:00.8]}
2... Bg7 {[%clk 0:03:01.1]} 3. Nf3 {[%clk 0:03:01.5]} 3... d6 {[%clk 0:03:01.2]}
4. Bc4 {[%clk 0:03:01.8]} 4... e6 {[%clk 0:03:01.1]} 5. Qe2 {[%clk 0:03:01.7]}
5... a6 {[%clk 0:03:00.3]} 6. c3 {[%clk 0:03:02]} 6... Nd7 {[%clk 0:03:00.4]} 7.
a4 {[%clk 0:03:02]} 7... b6 {[%clk 0:03:00.2]} 8. O-O {[%clk 0:03:01]} 8... Bb7
{[%clk 0:03:00.7]} 9. Re1 {[%clk 0:03:01.4]} 9... h6 {[%clk 0:03:00.8]} 10. Nbd2
{[%clk 0:03:01.1]} 10... g5 {[%clk 0:03:01.2]} 11. Nf1 {[%clk 0:03:01.1]} 11...
Ngf6 {[%clk 0:02:53.2]} 12. Ng3 {[%clk 0:03:00.6]} 12... O-O {[%clk 0:02:53.7]}
13. e5 {[%clk 0:02:56.8]} 13... dxe5 {[%clk 0:02:54.6]} 14. Nxe5 {[%clk
0:02:54.4]} 14... Qe7 {[%clk 0:02:26.9]} 15. Bd3 {[%clk 0:02:31.6]} 15... c5
{[%clk 0:02:26.3]} 16. dxc5 {[%clk 0:02:28.8]} 16... Nxe5 {[%clk 0:02:20.1]} 17.
Qxe5 {[%clk 0:02:28.5]} 17... Qxc5 {[%clk 0:02:15.9]} 18. Qxc5 {[%clk
0:02:26.2]} 18... bxc5 {[%clk 0:02:16.8]} 19. Ne4 {[%clk 0:02:24.2]} 19... Nxe4
{[%clk 0:02:05.8]} 20. Bxe4 {[%clk 0:02:25.1]} 20... Rab8 {[%clk 0:02:06]} 21.
Bc2 {[%clk 0:02:17.3]} 21... Bd5 {[%clk 0:02:05.1]} 22. Rb1 {[%clk 0:02:06.3]}
22... Ba2 {[%clk 0:02:01.4]} 23. Ra1 {[%clk 0:02:06]} 23... Bd5 {[%clk
0:02:00.3]} 24. Rb1 {[%clk 0:02:06]} 24... Rb7 {[%clk 0:01:55.5]} 25. Be4 {[%clk
0:01:31]} 25... Bxe4 {[%clk 0:01:51.3]} 26. Rxe4 {[%clk 0:01:31.9]} 26... Bxc3
{[%clk 0:01:51.8]} 27. Rc4 {[%clk 0:01:32.2]} 27... Bd4 {[%clk 0:01:52.1]} 28.
b4 {[%clk 0:01:31.9]} 28... Rfb8 {[%clk 0:01:50.4]} 29. Bd2 {[%clk 0:01:28.1]}
29... e5 {[%clk 0:01:50.8]} 30. Kf1 {[%clk 0:01:19.7]} 30... f6 {[%clk
0:01:50.4]} 31. Ke2 {[%clk 0:01:19.8]} 31... Kf7 {[%clk 0:01:51]} 32. Kd3 {[%clk
0:01:19.8]} 32... Ke6 {[%clk 0:01:51.5]} 33. g3 {[%clk 0:01:19.3]} 33... Kd5
{[%clk 0:01:51.1]} 34. f4 {[%clk 0:01:14.5]} 34... e4+ {[%clk 0:01:50.8]} 0-1

[Event "Late-Titled-Tuesday-Blitz-November-28-2023"]
[Site "Chess.com"]
[Date "2023.11.28"]
[Round "1"]
[White "Gyulamiryan-koryun"]
[Black "gmpeter008"]
[Result "0-1"]
[WhiteElo "1934"]
[BlackElo "2516"]
[TimeControl "180+1"]
[EndTime "14:04:49 PST"]
[Termination "gmpeter008 won by resignation"]

1. e4 {[%clk 0:02:58.3]} 1... e6 {[%clk 0:02:57.3]} 2. d4 {[%clk 0:02:57.4]}
2... d5 {[%clk 0:02:58.2]} 3. Nd2 {[%clk 0:02:56.8]} 3... Nf6 {[%clk 0:02:58]}
4. e5 {[%clk 0:02:56]} 4... Nfd7 {[%clk 0:02:58.3]} 5. Bd3 {[%clk 0:02:55.9]}
5... c5 {[%clk 0:02:58.6]} 6. c3 {[%clk 0:02:56]} 6... Nc6 {[%clk 0:02:58.8]} 7.
Ne2 {[%clk 0:02:56]} 7... Be7 {[%clk 0:02:52.6]} 8. O-O {[%clk 0:02:53.2]} 8...
O-O {[%clk 0:02:52.8]} 9. a3 {[%clk 0:02:51.9]} 9... a5 {[%clk 0:02:51.8]} 10.
Nf3 {[%clk 0:02:49.8]} 10... f5 {[%clk 0:02:50.5]} 11. exf6 {[%clk 0:02:42.8]}
11... Bxf6 {[%clk 0:02:50.5]} 12. Be3 {[%clk 0:02:38.8]} 12... e5 {[%clk
0:02:43.6]} 13. dxe5 {[%clk 0:02:35]} 13... Ncxe5 {[%clk 0:02:42]} 14. Nxe5
{[%clk 0:02:33.8]} 14... Bxe5 {[%clk 0:02:42.9]} 15. Qc2 {[%clk 0:02:25.6]}
15... Qh4 {[%clk 0:02:34.1]} 16. g3 {[%clk 0:02:22.5]} 16... Qh5 {[%clk
0:02:33.7]} 17. Nf4 {[%clk 0:02:16.5]} 17... Bxf4 {[%clk 0:02:32.7]} 18. Bxf4
{[%clk 0:02:16.1]} 18... Rxf4 {[%clk 0:01:34.3]} 19. gxf4 {[%clk 0:02:13]} 19...
Nf6 {[%clk 0:01:34.6]} 20. Be2 {[%clk 0:01:56.2]} 20... Ng4 {[%clk 0:01:24.7]}
21. Bxg4 {[%clk 0:01:34.8]} 21... Qxg4+ {[%clk 0:01:25.6]} 22. Kh1 {[%clk
0:01:33.7]} 22... Qf3+ {[%clk 0:01:26.1]} 23. Kg1 {[%clk 0:01:33.9]} 23... Bh3
{[%clk 0:01:26.8]} 0-1

[Event "Late-Titled-Tuesday-Blitz-November-28-2023"]
[Site "Chess.com"]
[Date "2023.11.28"]
[Round "1"]
[White "krucki03"]
[Black "TRadjabov"]
[Result "0-1"]
[WhiteElo "2482"]
[BlackElo "3005"]
[TimeControl "180+1"]
[EndTime "14:04:55 PST"]
[Termination "TRadjabov won by resignation"]

1. e4 {[%clk 0:02:55.7]} 1... b6 {[%clk 0:02:57.7]} 2. d4 {[%clk 0:02:55]} 2...
Bb7 {[%clk 0:02:58]} 3. Bd3 {[%clk 0:02:55.3]} 3... e6 {[%clk 0:02:58.5]} 4. Qe2
{[%clk 0:02:53.4]} 4... d6 {[%clk 0:02:58.5]} 5. c3 {[%clk 0:02:53.5]} 5... Nd7
{[%clk 0:02:58.6]} 6. f4 {[%clk 0:02:53.7]} 6... Ngf6 {[%clk 0:02:52.7]} 7. Nf3
{[%clk 0:02:53.6]} 7... Be7 {[%clk 0:02:52]} 8. O-O {[%clk 0:02:53.4]} 8... O-O
{[%clk 0:02:51.8]} 9. e5 {[%clk 0:02:43.9]} 9... Nd5 {[%clk 0:02:51.4]} 10. Be3
{[%clk 0:02:44.2]} 10... dxe5 {[%clk 0:02:47.4]} 11. fxe5 {[%clk 0:02:43.7]}
11... c5 {[%clk 0:02:47.7]} 12. Nbd2 {[%clk 0:02:40]} 12... cxd4 {[%clk
0:02:46.8]} 13. cxd4 {[%clk 0:02:39.5]} 13... Rc8 {[%clk 0:02:46.5]} 14. a3
{[%clk 0:02:38.3]} 14... Nc5 {[%clk 0:02:42.5]} 15. Bb1 {[%clk 0:02:25.8]} 15...
Ba6 {[%clk 0:02:39.1]} 16. Qe1 {[%clk 0:00:55.6]} 16... Bxf1 {[%clk 0:02:37.3]}
17. Kxf1 {[%clk 0:00:54.4]} 17... Na4 {[%clk 0:02:33]} 18. Ne4 {[%clk
0:00:47.7]} 18... Qd7 {[%clk 0:02:28.8]} 19. Bd2 {[%clk 0:00:40.7]} 19... Qb5+
{[%clk 0:02:24.6]} 20. Kg1 {[%clk 0:00:39.5]} 20... Qxb2 {[%clk 0:02:24.7]} 21.
Bd3 {[%clk 0:00:36.8]} 21... Qb3 {[%clk 0:02:12.9]} 22. Nf2 {[%clk 0:00:34.3]}
22... Nb2 {[%clk 0:02:09.5]} 23. Bb1 {[%clk 0:00:30]} 23... Nc4 {[%clk
0:02:03.2]} 24. Bd3 {[%clk 0:00:26.5]} 24... Nxd2 {[%clk 0:02:01]} 25. Nxd2
{[%clk 0:00:24.8]} 25... Qc3 {[%clk 0:01:59.6]} 26. Nf3 {[%clk 0:00:22.6]} 26...
Qxe1+ {[%clk 0:01:59.1]} 27. Rxe1 {[%clk 0:00:21.6]} 27... Bxa3 {[%clk
0:01:59.3]} 28. Ra1 {[%clk 0:00:18.9]} 28... Rc1+ {[%clk 0:01:59.6]} 0-1

[Event "Late-Titled-Tuesday-Blitz-November-28-2023"]
[Site "Chess.com"]
[Date "2023.11.28"]
[Round "1"]
[White "HalfIsCrayfish"]
[Black "Mbneu"]
[Result "1-0"]
[WhiteElo "2591"]
[BlackElo "2258"]
[TimeControl "180+1"]
[EndTime "14:04:59 PST"]
[Termination "HalfIsCrayfish won by resignation"]

1. e4 {[%clk 0:03:00.9]} 1... e5 {[%clk 0:02:57.7]} 2. d4 {[%clk 0:02:59.4]}
2... exd4 {[%clk 0:02:57]} 3. Nf3 {[%clk 0:02:59.5]} 3... Nc6 {[%clk 0:02:55.6]}
4. Nxd4 {[%clk 0:02:59.5]} 4... Nf6 {[%clk 0:02:54.1]} 5. Nc3 {[%clk 0:02:59]}
5... Bb4 {[%clk 0:02:52]} 6. Nxc6 {[%clk 0:02:59.2]} 6... bxc6 {[%clk
0:02:51.2]} 7. Bd3 {[%clk 0:02:59.2]} 7... d5 {[%clk 0:02:50.5]} 8. exd5 {[%clk
0:02:58.7]} 8... cxd5 {[%clk 0:02:50.5]} 9. O-O {[%clk 0:02:58.7]} 9... O-O
{[%clk 0:02:45.4]} 10. Bg5 {[%clk 0:02:59.4]} 10... c6 {[%clk 0:02:45.1]} 11.
Qf3 {[%clk 0:02:59.7]} 11... Rb8 {[%clk 0:02:37.9]} 12. h3 {[%clk 0:02:36.8]}
12... Be6 {[%clk 0:02:14.8]} 13. Ne2 {[%clk 0:02:36.4]} 13... Be7 {[%clk
0:02:11.7]} 14. b3 {[%clk 0:02:34.1]} 14... Nd7 {[%clk 0:02:10.7]} 15. Bxe7
{[%clk 0:02:18]} 15... Qxe7 {[%clk 0:02:11.6]} 16. Rae1 {[%clk 0:02:16.5]} 16...
Qf6 {[%clk 0:02:09.8]} 17. Nf4 {[%clk 0:02:12.2]} 17... Nc5 {[%clk 0:02:04.2]}
18. Qg3 {[%clk 0:02:06]} 18... Nxd3 {[%clk 0:02:00.2]} 19. Nxd3 {[%clk
0:02:04.9]} 19... Bf5 {[%clk 0:01:57.5]} 20. Qe5 {[%clk 0:02:02.8]} 20... Qxe5
{[%clk 0:01:55.9]} 21. Rxe5 {[%clk 0:02:03.7]} 21... Bxd3 {[%clk 0:01:51.2]} 22.
cxd3 {[%clk 0:02:03.7]} 22... Rfe8 {[%clk 0:01:51.5]} 23. Rfe1 {[%clk
0:02:03.9]} 23... Kf8 {[%clk 0:01:50.8]} 24. f4 {[%clk 0:01:52.2]} 24... f6
{[%clk 0:01:49.3]} 25. Rxe8+ {[%clk 0:01:51.6]} 25... Rxe8 {[%clk 0:01:48.6]}
26. Rxe8+ {[%clk 0:01:37.9]} 26... Kxe8 {[%clk 0:01:49.5]} 27. d4 {[%clk
0:01:38.1]} 27... a5 {[%clk 0:01:39.8]} 28. Kf2 {[%clk 0:01:26.4]} 28... Kd7
{[%clk 0:01:37.7]} 29. Ke3 {[%clk 0:01:25.8]} 29... Kc7 {[%clk 0:01:38]} 30. Kd3
{[%clk 0:01:23]} 30... Kb6 {[%clk 0:01:38.4]} 31. Kc3 {[%clk 0:01:23.2]} 31...
Kb5 {[%clk 0:01:38.4]} 32. a4+ {[%clk 0:01:20.3]} 32... Kb6 {[%clk 0:01:38.2]}
33. b4 {[%clk 0:01:21]} 33... f5 {[%clk 0:01:26.4]} 34. h4 {[%clk 0:01:19]}
34... h5 {[%clk 0:01:23.6]} 35. g3 {[%clk 0:01:19.1]} 35... g6 {[%clk
0:01:23.2]} 36. bxa5+ {[%clk 0:01:17.7]} 36... Kxa5 {[%clk 0:01:23.3]} 37. Kb3
{[%clk 0:01:18.2]} 37... Ka6 {[%clk 0:01:22.7]} 38. Kb4 {[%clk 0:01:17.7]} 38...
Kb6 {[%clk 0:01:22.6]} 39. a5+ {[%clk 0:01:16.3]} 39... Kc7 {[%clk 0:01:20.7]}
40. Kc5 {[%clk 0:01:16.2]} 1-0

[Event "Late-Titled-Tuesday-Blitz-November-28-2023"]
[Site "Chess.com"]
[Date "2023.11.28"]
[Round "1"]
[White "wanyaland"]
[Black "eljanov"]
[Result "0-1"]
[WhiteElo "2445"]
[BlackElo "2870"]
[TimeControl "180+1"]
[EndTime "14:05:00 PST"]
[Termination "eljanov won by resignation"]

1. d4 {[%clk 0:03:00.9]} 1... d5 {[%clk 0:02:58.9]} 2. c4 {[%clk 0:03:00.5]}
2... e6 {[%clk 0:02:59.4]} 3. g3 {[%clk 0:03:00.9]} 3... dxc4 {[%clk 0:02:58.5]}
4. Bg2 {[%clk 0:02:59.2]} 4... c5 {[%clk 0:02:58.1]} 5. Qa4+ {[%clk 0:02:55.1]}
5... Bd7 {[%clk 0:02:55.4]} 6. Qxc4 {[%clk 0:02:53.4]} 6... Bc6 {[%clk 0:02:55]}
7. Bxc6+ {[%clk 0:02:50.9]} 7... Nxc6 {[%clk 0:02:55.9]} 8. dxc5 {[%clk
0:02:51]} 8... Qa5+ {[%clk 0:02:41.6]} 9. Nc3 {[%clk 0:02:42.2]} 9... Qxc5
{[%clk 0:02:38.5]} 10. Qxc5 {[%clk 0:02:39.8]} 10... Bxc5 {[%clk 0:02:39.4]} 11.
Nf3 {[%clk 0:02:39.7]} 11... Nf6 {[%clk 0:02:40]} 12. O-O {[%clk 0:02:38.2]}
12... O-O {[%clk 0:02:29.7]} 13. Bg5 {[%clk 0:02:36.9]} 13... Nd4 {[%clk
0:02:05.9]} 14. Nxd4 {[%clk 0:02:35.1]} 14... Bxd4 {[%clk 0:02:05.9]} 15. Bd2
{[%clk 0:02:20.1]} 15... Rac8 {[%clk 0:01:57.2]} 16. Rfd1 {[%clk 0:02:17.2]}
16... a6 {[%clk 0:01:52.1]} 17. Rac1 {[%clk 0:02:11.6]} 17... Rc6 {[%clk
0:01:41.2]} 18. e3 {[%clk 0:02:09.4]} 18... Be5 {[%clk 0:01:39.4]} 19. f4 {[%clk
0:02:06.9]} 19... Bxc3 {[%clk 0:01:36.2]} 20. Rxc3 {[%clk 0:02:01.7]} 20... Rd6
{[%clk 0:01:36.3]} 21. Kf1 {[%clk 0:01:52]} 21... Ne4 {[%clk 0:01:34.6]} 22. Rc2
{[%clk 0:01:50.8]} 22... Rfd8 {[%clk 0:01:34.5]} 23. Ke2 {[%clk 0:01:50.9]}
23... f5 {[%clk 0:01:32.9]} 24. a4 {[%clk 0:01:47.1]} 24... Kf7 {[%clk
0:01:30.3]} 25. b3 {[%clk 0:01:45.8]} 25... Kg6 {[%clk 0:01:30.4]} 26. Rb2
{[%clk 0:01:21.5]} 26... Kh5 {[%clk 0:01:28.5]} 27. Rc2 {[%clk 0:01:16]} 27...
Kg4 {[%clk 0:01:27.6]} 28. h3+ {[%clk 0:01:11.3]} 28... Kxh3 {[%clk 0:01:27.6]}
29. Kf3 {[%clk 0:00:59.4]} 29... Nxd2+ {[%clk 0:01:27.7]} 30. Rcxd2 {[%clk
0:00:58.6]} 30... Rxd2 {[%clk 0:01:27.9]} 0-1